bitfinex/quotes_SOLUSD_20250901
["timestamp","ask_amount","ask_price","bid_price","bid_amount"]
[1756768882760,5.74476258,196.28,196.27,0.2]
[1756768882976,5.09476258,196.28,196.27,0.2]
[1756768883660,5.09476258,196.28,196.27,0.89]
[1756768883870,31.09476258,196.28,196.27,0.89]
[1756768884180,31.09476258,196.28,196.27,0.2]
[1756768885076,46.18476258,196.28,196.27,1e-08]
[1756768885478,46.18476258,196.28,196.25,0.12]
[1756768885479,26.0,196.26,196.25,1e-08]
[1756768885673,66.44,196.26,196.25,1e-08]
[1756768885878,67.09,196.26,196.25,1e-08]
[1756768886752,72.18528176,196.26,196.25,1e-08]
[1756768886962,71.53528176,196.26,196.25,1e-08]
[1756768887188,72.18528176,196.26,196.25,1e-08]
[1756768888173,31.09528176,196.26,196.25,1e-08]
[1756768888489,20.50886629,196.29,196.25,0.69000001]
[1756768888490,0.03,196.29,196.25,0.69000001]
[1756768888696,0.03,196.29,196.26,0.69]
[1756768888867,26.0,196.27,196.26,0.69]
[1756768889069,5.09484042,196.28,196.26,0.69]
[1756768889395,5.09484042,196.28,196.25,1e-08]
[1756768889572,5.09484042,196.28,196.25,0.69000001]
[1756768891065,5.09484042,196.28,196.25,1e-08]
[1756768891271,5.09484042,196.28,196.25,0.69000001]
[1756768892000,26.0,196.26,196.25,1e-08]
[1756768892478,160.45,196.26,196.25,1e-08]
[1756768892679,0.65,196.26,196.25,1e-08]
[1756768893290,133.8,196.25,196.24,1e-08]
[1756768893593,177.63567386,196.25,196.24,1e-08]
[1756768893897,178.28567386,196.25,196.24,1e-08]
[1756768895195,138.89580105,196.24,196.23,1e-08]
[1756768895372,149.40360524,196.24,196.23,1e-08]
[1756768895569,150.05360524,196.24,196.23,1e-08]
[1756768895989,149.40360524,196.24,196.23,1e-08]
[1756768896189,182.73147491,196.24,196.23,1e-08]
[1756768896598,183.38147491,196.24,196.23,1e-08]
[1756768896799,142.31147491,196.24,196.23,1e-08]
[1756768897106,182.73147491,196.24,196.23,1e-08]
[1756768897894,5.09476258,196.28,196.23,0.70000001]
[1756768898203,3.42341621,196.27,196.24,0.7]
[1756768898501,26.0,196.25,196.24,0.7]
[1756768898798,5.12456067,196.29,196.24,0.82]
[1756768898986,26.0,196.27,196.24,0.82]
[1756768899379,3.42663172,196.26,196.24,0.82]
[1756768900501,8.55140098,196.28,196.24,0.82]
[1756768900804,31.12476926,196.28,196.25,0.7]
[1756768901008,31.12476926,196.28,196.26,0.7]
[1756768902000,31.12476926,196.28,196.24,0.12]
[1756768902200,31.12476926,196.28,196.25,0.7]
[1756768903915,31.12476926,196.28,196.26,0.7]
[1756768904215,31.12476926,196.28,196.24,0.12]
[1756768904384,26.0,196.25,196.24,0.12]
[1756768904718,29.429409,196.25,196.24,0.12]
[1756768906110,34.5249504,196.25,196.24,0.12]
[1756768906991,0.03,196.28,196.25,13.59559401]
[1756768907184,0.03,196.28,196.27,13.59559401]
[1756768907386,26.03,196.28,196.27,13.59559401]
[1756768907807,26.03,196.28,196.27,14.29559401]
[1756768908317,0.03,196.28,196.27,19.39061617]
[1756768908497,0.03,196.28,196.27,14.29559401]
[1756768910105,0.03,196.28,196.27,19.39061617]
[1756768910710,0.03,196.28,196.27,14.29559401]
[1756768913211,0.03,196.28,196.25,0.7]
[1756768913519,0.03,196.28,196.26,13.59559401]
[1756768913714,0.03,196.28,196.26,14.29559401]
[1756768914723,0.03,196.28,196.27,0.7]
[1756768917316,0.03,196.28,196.24,5.21575629]
[1756768917525,26.03,196.28,196.24,0.12]
[1756768917689,0.68,196.28,196.24,13.71559401]
[1756768918011,0.03,196.28,196.24,14.41559401]
[1756768918311,0.03,196.28,196.24,0.82]
[1756768918695,26.03,196.28,196.24,0.82]
[1756768919890,26.0,196.26,196.24,0.12]
[1756768920094,3.42859045,196.25,196.24,0.12]
[1756768920289,4.07859045,196.25,196.24,0.12]
[1756768920619,138.89580105,196.24,196.23,1e-08]
[1756768920810,142.3243915,196.24,196.23,1e-08]
[1756768920995,142.9743915,196.24,196.23,1e-08]
[1756768922397,133.8,196.23,196.22,1e-08]
[1756768922597,5.09632045,196.22,196.21,1e-08]
[1756768922913,49.5749109,196.22,196.21,1e-08]
[1756768923707,26.0,196.2,196.17,0.2]
[1756768923904,29.42859045,196.2,196.17,0.2]
[1756768924205,30.07859045,196.2,196.17,0.2]
[1756768924595,35.1754304,196.2,196.17,0.2]
[1756768924796,43.82859045,196.19,196.17,0.2]
[1756768925124,3.42859045,196.18,196.17,0.2]
[1756768925293,4.07859045,196.18,196.17,0.2]
[1756768925803,3.42859045,196.18,196.17,0.86]
[1756768926000,5.09683995,196.2,196.17,0.86]
[1756768926202,5.09683995,196.2,196.18,0.66]
[1756768926412,31.09683995,196.2,196.18,0.66]
[1756768927035,5.09528176,196.26,196.19,0.66]
[1756768927207,40.4,196.24,196.19,0.66]
[1756768927406,26.0,196.21,196.17,0.2]
[1756768927705,26.0,196.18,196.17,0.2]
[1756768928103,26.0,196.18,196.17,0.86]
[1756768928423,40.4,196.21,196.17,0.86]
[1756768928626,26.0,196.18,196.17,0.86]
[1756768929019,40.4,196.22,196.17,0.86]
[1756768929020,31.09717121,196.19,196.17,0.86]
[1756768929225,31.09717121,196.19,196.17,0.2]
[1756768929400,0.65,196.18,196.17,0.2]
[1756768929729,4.07135746,196.18,196.17,0.2]
[1756768930221,3.42135746,196.18,196.17,0.2]
[1756768930425,31.09717121,196.19,196.17,0.2]
[1756768931000,31.09717121,196.19,196.18,0.66]
[1756768931210,138.89643102,196.22,196.18,0.66]
[1756768931427,179.29643102,196.22,196.18,0.66]
[1756768931640,205.29643102,196.22,196.17,0.2]
[1756768931814,26.0,196.2,196.19,0.66]
[1756768932022,179.29643102,196.22,196.19,0.66]
[1756768932333,26.0,196.2,196.19,0.66]
[1756768933000,26.0,196.2,196.17,0.2]
[1756768933202,31.09683995,196.2,196.17,0.86]
[1756768933411,31.09683995,196.2,196.17,0.2]
[1756768934017,31.74683995,196.2,196.17,0.2]
[1756768934513,72.14683995,196.2,196.17,0.2]
[1756768934918,71.49683995,196.2,196.17,0.2]
[1756768935525,71.49683995,196.2,196.18,0.66]
[1756768935726,71.49683995,196.2,196.19,0.12]
[1756768938205,0.03,196.24,196.2,13.59559401]
[1756768938408,0.03,196.24,196.21,0.66]
[1756768938629,26.0,196.23,196.21,0.66]
[1756768938828,26.0,196.23,196.2,18.69237771]
[1756768939032,0.03,196.24,196.2,0.66]
[1756768939419,0.03,196.24,196.21,0.66]
[1756768939832,0.03,196.24,196.19,0.12]
[1756768939833,26.0,196.21,196.19,0.12]
[1756768940027,0.65,196.2,196.19,0.12]
[1756768940241,26.65,196.2,196.19,0.12]
[1756768940546,72.14683995,196.2,196.19,0.12]
[1756768941426,75.56554567,196.2,196.19,0.12]
[1756768942430,34.51554567,196.2,196.19,0.12]
[1756768942635,71.49683995,196.2,196.19,0.12]
[1756768945035,5.09660102,196.21,196.19,0.12]
[1756768945241,40.4,196.2,196.19,0.12]
[1756768946043,133.83,196.24,196.2,13.59559401]
[1756768946230,5.12587005,196.24,196.21,0.66]
[1756768946425,5.12587005,196.24,196.22,0.66]
[1756768946740,26.0,196.21,196.19,0.12]
[1756768947251,31.09664164,196.21,196.19,0.12]
[1756768948235,31.09664164,196.21,196.2,0.66]
[1756768948443,26.0,196.21,196.2,0.66]
[1756768949441,31.09658019,196.21,196.2,0.66]
[1756768949638,31.09658019,196.21,196.19,0.12]
[1756768951033,31.09658019,196.21,196.19,0.78]
[1756768952741,159.8,196.23,196.19,13.71559401]
[1756768953248,159.8,196.23,196.2,0.66]
[1756768953453,159.8,196.23,196.19,13.71559401]
[1756768953644,0.03,196.21,196.2,0.66]
[1756768953842,0.03,196.21,196.2,14.25559401]
[1756768956445,0.03,196.21,196.2,19.35243396]
[1756768956848,0.03,196.21,196.2,14.25559401]
[1756768958923,0.03,196.21,196.19,13.71559401]
[1756768959222,0.68,196.21,196.19,0.12]
[1756768959546,0.03,196.21,196.19,0.12]
[1756768961133,0.03,196.21,196.19,0.78]
[1756768961452,0.03,196.21,196.19,0.12]
[1756768963455,3.45943465,196.21,196.19,0.12]
[1756768964357,8.5561028,196.21,196.19,0.12]
[1756768964551,3.42943465,196.2,196.19,0.12]
[1756768964750,5.12666815,196.21,196.19,0.12]
[1756768965155,0.03,196.21,196.19,0.12]
[1756768965352,0.03,196.21,196.19,0.78]
[1756768965556,3.46477575,196.21,196.19,0.78]
[1756768965744,0.03,196.21,196.19,0.78]
[1756768966042,3.46477575,196.21,196.19,0.78]
[1756768966657,3.46477575,196.21,196.2,0.66]
[1756768966844,0.03,196.21,196.2,0.66]
[1756768967246,3.46477575,196.23,196.21,13.59559401]
[1756768967560,0.03,196.23,196.22,18.00149614]
[1756768967751,0.03,196.23,196.22,14.25559401]
[1756768971873,0.03,196.23,196.22,13.59559401]
[1756768972458,0.03,196.23,196.22,14.25559401]
[1756768975953,0.03,196.23,196.22,13.59559401]
[1756768978470,0.03,196.23,196.19,99.48]
[1756768978655,0.71,196.23,196.2,13.59559401]
[1756768978974,0.71,196.23,196.19,0.12]
[1756768979171,26.0,196.21,196.19,0.12]
[1756768979470,0.68,196.2,196.19,0.12]
[1756768980766,26.0,196.21,196.2,13.59559401]
[1756768980953,0.68,196.21,196.19,0.12]
[1756768981149,3.43125176,196.22,196.19,0.12]
[1756768981359,26.0,196.21,196.19,0.12]
[1756768982080,26.68,196.21,196.19,0.12]
[1756768982264,3.43181714,196.2,196.19,0.12]
[1756768982580,3.43181714,196.21,196.19,0.12]
[1756768982872,5.09683995,196.2,196.19,0.12]
[1756768983074,5.09662561,196.21,196.19,0.78]
[1756768983257,5.09662561,196.21,196.19,0.12]
[1756768983570,5.77662561,196.21,196.19,0.12]
[1756768983767,31.09662561,196.21,196.19,0.12]
[1756768986756,4.11253008,196.2,196.19,0.12]
[1756768986958,9.20937003,196.2,196.19,0.12]
[1756768987160,3.43253008,196.2,196.19,14.41559401]
[1756768987361,3.43253008,196.22,196.2,13.59559401]
[1756768987665,0.03,196.23,196.21,0.7]
[1756768988063,0.03,196.23,196.22,0.7]
[1756768989283,0.03,196.23,196.2,59.75234503]
[1756768989456,0.03,196.23,196.22,0.7]
[1756768989970,0.03,196.23,196.2,118.05234503]
[1756768989971,0.03,196.23,196.2,113.65559401]
[1756768990174,0.03,196.23,196.19,13.71559401]
[1756768990483,0.03,196.23,196.2,0.7]
[1756768991275,0.03,196.23,196.21,0.7]
[1756768992471,0.03,196.23,196.19,13.71559401]
[1756768992667,0.03,196.23,196.2,0.7]
[1756768993462,0.03,196.23,196.21,0.7]
[1756768995197,5.12606074,196.23,196.19,13.71559401]
[1756768995400,0.68,196.22,196.19,13.71559401]
[1756768995573,3.4340431,196.22,196.19,13.71559401]
[1756768995892,0.03,196.23,196.2,0.7]
[1756768996090,0.03,196.23,196.21,0.7]
[1756768996666,0.03,196.23,196.19,13.71559401]
[1756768996667,0.03,196.23,196.19,14.41559401]
[1756768996981,0.03,196.23,196.2,0.7]
[1756768997369,0.03,196.23,196.21,13.59559401]
[1756768997796,0.03,196.23,196.19,13.71559401]
[1756768997977,26.68,196.22,196.19,0.12]
[1756768998312,26.0,196.22,196.19,0.12]
[1756768998502,3.43475723,196.21,196.19,0.12]
[1756768998679,26.0,196.22,196.19,0.82]
[1756768999100,26.0,196.22,196.2,13.59559401]
[1756769000100,5.09647058,196.22,196.2,13.59559401]
[1756769000302,5.09647058,196.22,196.19,0.12]
[1756769001878,5.09647058,196.22,196.2,13.59559401]
[1756769002200,5.12606074,196.23,196.2,13.59559401]
[1756769002385,3.43464762,196.22,196.2,13.59559401]
[1756769002584,3.43464762,196.22,196.19,0.12]
[1756769003309,3.43464762,196.22,196.2,13.59559401]
[1756769004084,3.43464762,196.22,196.2,0.7]
[1756769004584,9.21110781,196.22,196.19,0.12]
[1756769004785,3.43474981,196.21,196.19,0.12]
[1756769005776,8.53152273,196.21,196.19,0.12]
[1756769005977,5.09677292,196.21,196.19,0.12]
[1756769006200,0.68,196.22,196.19,0.12]
[1756769006201,0.03,196.22,196.2,0.7]
[1756769006410,3.4648097,196.22,196.2,0.7]
[1756769006719,3.4648097,196.22,196.21,13.59559401]
[1756769006876,0.03,196.22,196.21,0.7]
[1756769008015,0.03,196.22,196.21,5.79658019]
[1756769011408,0.03,196.22,196.21,0.7]
[1756769015509,0.03,196.22,196.2,112.93559401]
[1756769015810,0.67,196.21,196.19,0.12]
[1756769015983,0.67,196.2,196.19,0.12]
[1756769017508,5.76683995,196.2,196.19,0.12]
[1756769017810,5.12636851,196.22,196.19,0.12]
[1756769018016,0.03,196.22,196.19,0.12]
[1756769018217,8.56094108,196.22,196.19,0.12]
[1756769018387,3.43456061,196.21,196.19,0.12]
[1756769018591,5.79638047,196.22,196.19,0.12]
[1756769019108,5.12638047,196.22,196.19,0.12]
[1756769019492,4.10473024,196.21,196.19,0.12]
[1756769019693,3.43473024,196.21,196.19,0.12]
[1756769023624,9.20131637,196.21,196.19,0.12]
[1756769023791,5.76658613,196.21,196.19,0.12]
[1756769024495,0.67,196.2,196.19,0.12]
[1756769024813,5.76683995,196.2,196.19,0.12]
[1756769024991,9.20191414,196.2,196.19,0.12]
[1756769027113,8.53191414,196.2,196.19,0.12]
[1756769027716,3.43507419,196.2,196.19,0.12]
[1756769027934,0.03,196.22,196.19,0.84]
[1756769028101,0.03,196.22,196.2,13.59559401]
[1756769028300,0.03,196.22,196.2,14.31559401]
[1756769028722,0.03,196.22,196.21,0.72]
[1756769029206,0.03,196.22,196.21,59.7321742]
[1756769029539,0.03,196.22,196.21,63.47807633]
[1756769029709,0.03,196.22,196.21,65.51998633]
[1756769031232,0.03,196.22,196.21,21.4540842]
[1756769031410,0.03,196.22,196.21,59.7321742]
[1756769031610,0.03,196.22,196.21,65.52009033]
[1756769032216,0.03,196.22,196.21,118.7321742]
[1756769033846,0.03,196.22,196.21,73.31559401]
[1756769034019,0.03,196.22,196.21,112.91559401]
[1756769036649,0.03,196.22,196.21,72.59559401]
[1756769036944,0.7,196.22,196.19,2.162223]
[1756769037129,0.67,196.21,196.19,2.162223]
[1756769037332,0.67,196.2,196.19,0.12]
[1756769038713,5.76683995,196.2,196.19,0.12]
[1756769039646,0.03,196.22,196.19,0.84]
[1756769040231,0.03,196.22,196.2,14.31559401]
[1756769040622,0.03,196.22,196.19,13.71559401]
[1756769040826,0.03,196.22,196.19,14.43559401]
[1756769041635,0.67,196.21,196.19,0.12]
[1756769041845,0.03,196.22,196.19,0.12]
[1756769042325,0.03,196.22,196.19,0.84]
[1756769042658,0.7,196.22,196.19,0.12]
[1756769042822,0.03,196.22,196.19,0.12]
[1756769043214,0.03,196.22,196.19,0.84]
[1756769043417,0.03,196.22,196.19,0.12]
[1756769043657,0.67,196.21,196.19,0.12]
[1756769043956,4.10104051,196.21,196.19,0.12]
[1756769044450,0.67,196.2,196.19,0.12]
[1756769044630,3.43104051,196.21,196.19,0.12]
[1756769044836,8.52771165,196.21,196.19,0.12]
[1756769045023,5.09667114,196.21,196.19,0.12]
[1756769045231,0.66,196.2,196.19,0.12]
[1756769045445,5.09667114,196.21,196.19,0.12]
[1756769045956,31.1263451,196.22,196.19,0.12]
[1756769046527,31.7863451,196.22,196.19,0.12]
[1756769047422,31.1263451,196.22,196.19,0.12]
[1756769047743,4.09071819,196.21,196.19,0.12]
[1756769047919,0.66,196.21,196.19,0.12]
[1756769048733,5.75676598,196.21,196.19,0.12]
[1756769049346,0.66,196.2,196.19,0.12]
[1756769050147,5.09676598,196.21,196.19,0.12]
[1756769050443,71.4263784,196.22,196.19,0.12]
[1756769050750,3.4304942,196.21,196.19,0.12]
[1756769050948,8.52723419,196.21,196.19,0.12]
[1756769051148,5.75673999,196.21,196.19,0.12]
[1756769053735,31.12638225,196.22,196.19,0.12]
[1756769053946,3.43022172,196.21,196.19,0.79]
[1756769054334,5.12638225,196.22,196.19,0.79]
[1756769054548,0.03,196.22,196.19,0.79]
[1756769055062,5.12635501,196.22,196.19,0.79]
[1756769056627,5.12635501,196.22,196.19,0.12]
[1756769056855,4.09055765,196.21,196.19,0.12]
[1756769057152,3.43055765,196.21,196.19,0.12]
[1756769058352,5.09683995,196.2,196.19,0.12]
[1756769058533,5.75683995,196.2,196.19,0.12]
[1756769060055,9.18808931,196.2,196.19,0.12]
[1756769060460,11.23145931,196.2,196.19,0.12]
[1756769060832,15.52253658,196.2,196.19,1e-08]
[1756769061028,26.0,196.18,196.17,0.2]
[1756769061358,69.71124936,196.18,196.17,0.2]
[1756769061530,70.37124936,196.18,196.17,0.2]
[1756769061730,75.46860892,196.18,196.17,0.2]
[1756769063136,75.46860892,196.18,196.17,1e-08]
[1756769065529,77.51239692,196.18,196.17,1e-08]
[1756769066648,34.52860892,196.18,196.17,1e-08]
[1756769067151,74.80860892,196.18,196.17,1e-08]
[1756769067841,75.46860892,196.18,196.17,1e-08]
[1756769068735,74.80860892,196.18,196.17,1e-08]
[1756769068957,34.52860892,196.18,196.17,1e-08]
[1756769069159,74.80860892,196.18,196.17,1e-08]
[1756769069352,34.52860892,196.18,196.17,1e-08]
[1756769069550,31.09735956,196.18,196.17,0.67000001]
[1756769069945,26.0,196.18,196.17,0.67000001]
[1756769070142,31.09735956,196.18,196.17,0.67000001]
[1756769071043,31.09735956,196.18,196.17,1e-08]
[1756769072365,31.09735956,196.18,196.17,0.67000001]
[1756769072859,5.09712598,196.19,196.17,0.67000001]
[1756769073656,31.09689564,196.2,196.18,0.67]
[1756769073861,26.0,196.2,196.19,0.67]
[1756769074159,5.09665184,196.21,196.19,0.67]
[1756769074347,66.31,196.22,196.2,0.67]
[1756769074533,26.03,196.22,196.2,0.67]
[1756769074736,26.03,196.22,196.21,0.67]
[1756769075762,31.12632045,196.22,196.21,0.67]
[1756769076866,31.12632045,196.22,196.19,0.71]
[1756769077060,31.12632045,196.22,196.2,0.71]
[1756769077358,31.12632045,196.22,196.21,0.71]
[1756769077565,31.12632045,196.22,196.19,0.71]
[1756769077867,31.12632045,196.22,196.2,0.71]
[1756769078065,31.12632045,196.22,196.18,13.59559401]
[1756769078247,31.12632045,196.22,196.18,14.30559401]
[1756769078447,31.12632045,196.22,196.19,0.71]
[1756769078766,26.03,196.22,196.19,0.71]
[1756769078964,31.12637582,196.22,196.19,0.71]
[1756769079269,31.12637582,196.22,196.2,0.71]
[1756769080056,0.03,196.22,196.21,0.71]
[1756769081675,0.03,196.22,196.21,14.30559401]
[1756769082657,0.03,196.22,196.19,4.167871]
[1756769082855,26.0,196.2,196.17,1e-08]
[1756769083461,26.68,196.2,196.17,1e-08]
[1756769083655,5.09709975,196.19,196.17,1e-08]
[1756769083862,5.09709975,196.19,196.17,0.71000001]
[1756769084371,5.09709975,196.19,196.17,1e-08]
[1756769085870,5.77709975,196.19,196.17,1e-08]
[1756769087274,40.94,196.18,196.17,1e-08]
[1756769087457,44.37022571,196.18,196.17,1e-08]
[1756769087786,49.46758527,196.18,196.17,1e-08]
[1756769088757,8.52758527,196.18,196.17,1e-08]
[1756769090983,5.09735956,196.18,196.17,1e-08]
[1756769091156,8.52758013,196.18,196.17,1e-08]
[1756769096077,5.12711091,196.19,196.17,0.71000001]
[1756769096289,5.12711091,196.19,196.18,0.71]
[1756769097476,0.03,196.19,196.18,0.71]
[1756769100468,0.03,196.19,196.17,1e-08]
[1756769100682,0.71,196.19,196.17,1e-08]
[1756769100983,3.46079921,196.19,196.17,1e-08]
[1756769102169,3.46079921,196.19,196.17,0.71000001]
[1756769102376,5.12724458,196.19,196.17,0.71000001]
[1756769103298,5.12724458,196.19,196.17,1e-08]
[1756769104290,0.03,196.19,196.17,1e-08]
[1756769104578,3.46138761,196.19,196.17,1e-08]
[1756769105692,0.03,196.19,196.17,1e-08]
[1756769107076,8.55910903,196.19,196.17,1e-08]
[1756769107272,5.1272163,196.19,196.17,1e-08]
[1756769107779,0.03,196.19,196.18,0.68]
[1756769111288,0.03,196.19,196.18,14.27559401]
[1756769111668,0.03,196.19,196.18,19.37295357]
[1756769111868,0.03,196.19,196.18,23.62859165]
[1756769112089,0.03,196.19,196.18,37.90418565]
[1756769113093,0.03,196.19,196.18,96.90418565]
[1756769116887,0.03,196.19,196.18,87.38092396]
[1756769117083,0.7,196.19,196.18,14.275594]
[1756769117397,0.7,196.19,196.17,1e-08]
[1756769117872,0.03,196.19,196.17,1e-08]
[1756769118073,0.03,196.19,196.18,13.59559401]
[1756769118472,0.03,196.19,196.17,1e-08]
[1756769118985,0.7,196.19,196.17,1e-08]
[1756769119596,0.03,196.19,196.17,1e-08]
[1756769121002,0.03,196.19,196.17,0.68000001]
[1756769121375,0.03,196.19,196.17,1e-08]
[1756769121694,0.7,196.19,196.17,1e-08]
[1756769122093,0.03,196.19,196.17,1e-08]
[1756769123600,0.7,196.19,196.17,1e-08]
[1756769123794,0.67,196.18,196.17,1e-08]
[1756769123995,0.03,196.19,196.17,1e-08]
[1756769124304,0.7,196.19,196.17,1e-08]
[1756769124898,0.03,196.19,196.17,1e-08]
[1756769125400,0.03,196.19,196.17,13.59559402]
[1756769126780,0.67,196.18,196.17,1e-08]
[1756769127803,5.76735956,196.18,196.17,1e-08]
[1756769129585,9.19871317,196.18,196.17,1e-08]
[1756769134009,8.52871317,196.18,196.17,1e-08]
[1756769134888,9.19871317,196.18,196.17,1e-08]
[1756769135085,8.52871317,196.18,196.17,1e-08]
[1756769136510,0.03,196.19,196.17,14.27559402]
[1756769136692,0.03,196.19,196.18,14.27559401]
[1756769138505,0.03,196.19,196.18,19.37295357]
[1756769140987,0.03,196.19,196.18,14.27559401]
[1756769142312,0.69,196.19,196.18,13.59559401]
[1756769142487,0.69,196.19,196.17,1e-08]
[1756769142992,0.03,196.19,196.17,1e-08]
[1756769143417,0.03,196.19,196.17,0.68000001]
[1756769144509,0.03,196.19,196.17,1e-08]
[1756769147323,0.03,196.19,196.18,14.27559401]
[1756769147501,0.03,196.19,196.18,18.02149614]
[1756769147692,1e-08,196.21,196.19,39.59559401]
[1756769147893,1e-08,196.21,196.2,61.73708226]
[1756769148091,1e-08,196.21,196.2,62.41708226]
[1756769148292,1e-08,196.21,196.2,64.45878426]
[1756769148494,1e-08,196.21,196.2,69.55562421]
[1756769149019,1e-08,196.21,196.2,128.55562421]
[1756769149329,1e-08,196.21,196.2,128.04594022]
[1756769149640,0.03,196.23,196.22,13.59559401]
[1756769149833,1e-08,196.24,196.23,43.34149614]
[1756769150009,1e-08,196.24,196.23,84.16149614]
[1756769150915,1e-08,196.24,196.23,89.25755688]
[1756769151117,1e-08,196.24,196.23,45.37165475]
[1756769151440,1e-08,196.24,196.23,89.25755688]
[1756769152535,1e-08,196.24,196.23,148.25755688]
[1756769157313,1e-08,196.24,196.23,150.29894588]
[1756769162713,1e-08,196.24,196.23,80.41304375]
[1756769162918,1e-08,196.24,196.23,124.78855195]
[1756769163132,1e-08,196.24,196.23,124.27894588]
[1756769163346,1e-08,196.24,196.23,83.47894588]
[1756769163527,1e-08,196.24,196.23,121.53755688]
[1756769163939,1e-08,196.24,196.23,122.21755688]
[1756769166528,1e-08,196.24,196.23,63.21755688]
[1756769166727,1e-08,196.24,196.23,63.72716295]
[1756769167637,0.03,196.27,196.23,63.72716295]
[1756769167823,0.03,196.27,196.24,18.01149614]
[1756769168232,0.03,196.27,196.25,39.59559401]
[1756769168417,1e-08,196.27,196.26,57.95102431]
[1756769168821,1e-08,196.27,196.26,63.71630607]
[1756769169429,1e-08,196.27,196.26,122.71630607]
[1756769169632,1e-08,196.27,196.26,122.2067779]
[1756769170723,1e-08,196.27,196.26,82.1067779]
[1756769170928,1e-08,196.27,196.26,122.71630607]
[1756769171131,1e-08,196.27,196.26,122.2067779]
[1756769173146,1e-08,196.27,196.26,124.2478539]
[1756769176732,0.03,196.28,196.27,13.59559401]
[1756769176927,0.03,196.28,196.27,18.52099835]
[1756769177345,0.03,196.28,196.27,20.56197135]
[1756769178348,0.03,196.28,196.27,25.65699351]
[1756769179839,0.03,196.29,196.27,25.65699351]
[1756769180034,0.03,196.29,196.28,84.09149614]
[1756769180959,0.03,196.29,196.28,86.13236414]
[1756769181357,0.03,196.29,196.28,85.46236414]
[1756769182066,0.03,196.29,196.28,90.55712672]
[1756769182532,0.03,196.29,196.28,91.22712672]
[1756769182939,0.03,196.29,196.28,150.22712672]
[1756769183261,0.03,196.29,196.28,149.55712672]
[1756769183736,0.03,196.29,196.28,145.81122459]
[1756769183936,0.03,196.29,196.28,147.51625872]
[1756769185059,0.03,196.29,196.28,148.18625872]
[1756769185360,0.03,196.29,196.28,150.22723172]
[1756769185542,0.03,196.29,196.28,147.49625872]
[1756769186449,0.68,196.29,196.28,72.59559401]
[1756769186763,0.68,196.29,196.28,53.65559401]
[1756769187346,0.68,196.29,196.28,13.59559401]
[1756769187551,0.68,196.29,196.28,53.65559401]
[1756769188062,0.68,196.29,196.28,13.59559401]
[1756769188265,0.68,196.29,196.28,44.27559401]
[1756769191777,0.68,196.29,196.28,53.65559401]
[1756769191956,5.77450303,196.29,196.28,13.59559401]
[1756769192165,5.77450303,196.29,196.27,40.06]
[1756769192347,0.65,196.28,196.27,53.65559401]
[1756769193942,0.65,196.28,196.27,40.06]
[1756769194161,0.65,196.28,196.26,40.18]
[1756769194356,0.65,196.27,196.26,53.77559401]
[1756769194558,0.65,196.27,196.26,0.12]
[1756769195382,5.74502216,196.27,196.26,0.12]
[1756769195871,9.17607672,196.27,196.26,0.09]
[1756769200353,9.17607672,196.27,196.26,1e-08]
[1756769201353,26.0,196.24,196.23,0.12]
[1756769201552,26.0,196.24,196.23,1e-08]